bitfinex/quotes_BTCUSD_20241011
["timestamp","ask_amount","ask_price","bid_price","bid_amount"]
[1728621081381,0.168034,60647.0,60646.0,0.156402]
[1728621081860,0.169034,60647.0,60646.0,0.165402]
[1728621090031,0.002634,60647.0,60646.0,0.16869965]
[1728621090231,0.002634,60647.0,60646.0,0.16869944]
[1728621095061,0.1719433,60647.0,60646.0,0.02029744]
[1728621095274,0.51717079,60647.0,60646.0,0.017]
[1728621096000,0.51617079,60647.0,60646.0,0.008]
[1728621096218,0.00472849,60644.0,60640.0,0.39616356]
[1728621096459,0.1693093,60643.0,60640.0,0.39616356]
[1728621096670,0.1693093,60643.0,60640.0,0.148416]
[1728621099031,0.1703093,60643.0,60640.0,0.166416]
[1728621099245,0.1703093,60643.0,60640.0,0.158416]
[1728621099683,0.1703093,60643.0,60640.0,0.166416]
[1728621099892,0.1703093,60643.0,60640.0,0.158416]
[1728621100388,0.1703093,60643.0,60640.0,0.166416]
[1728621100622,0.1693093,60643.0,60640.0,0.148416]
[1728621100833,0.1693093,60643.0,60640.0,0.156416]
[1728621101040,0.1703093,60643.0,60640.0,0.166416]
[1728621101711,0.1693093,60643.0,60640.0,0.156416]
[1728621101952,0.1703093,60643.0,60640.0,0.018]
[1728621102179,0.1703093,60643.0,60641.0,0.148414]
[1728621102400,0.1693093,60643.0,60641.0,0.148414]
[1728621102633,0.1802,60641.0,60636.0,0.000817]
[1728621102875,0.0993,60637.0,60636.0,0.000817]
[1728621103090,0.3495093,60637.0,60636.0,0.000817]
[1728621103302,0.4979333,60637.0,60636.0,0.000817]
[1728621103515,0.50266179,60637.0,60636.0,0.000817]
[1728621104357,0.50266179,60637.0,60636.0,0.008817]
[1728621105190,0.50366179,60637.0,60636.0,0.018817]
[1728621105808,0.35523779,60637.0,60636.0,0.018817]
[1728621106432,0.62542034,60637.0,60636.0,0.018817]
[1728621106650,0.62742034,60637.0,60636.0,0.018817]
[1728621106858,0.72542034,60637.0,60636.0,0.018817]
[1728621107513,0.72542034,60637.0,60636.0,0.008817]
[1728621107514,0.72442034,60637.0,60636.0,0.008817]
[1728621107723,0.72442034,60637.0,60636.0,0.005817]
[1728621108376,0.72442034,60637.0,60636.0,0.000817]
[1728621108593,0.72442034,60637.0,60636.0,0.004817]
[1728621109048,0.72442034,60637.0,60636.0,0.007817]
[1728621114476,0.72442034,60637.0,60636.0,0.003817]
[1728621114690,0.72442034,60637.0,60636.0,0.007817]
[1728621115091,0.72442034,60637.0,60636.0,0.003817]
[1728621115727,0.72442034,60637.0,60636.0,0.000817]
[1728621115932,0.72442034,60637.0,60636.0,0.001817]
[1728621116134,0.72442034,60637.0,60636.0,0.004817]
[1728621116328,0.72442034,60637.0,60636.0,0.001817]
[1728621118784,0.35423779,60637.0,60636.0,0.001817]
[1728621118969,0.27333779,60637.0,60636.0,0.001817]
[1728621119236,0.17403779,60637.0,60636.0,0.001817]
[1728621120386,0.17403779,60637.0,60636.0,0.000817]
[1728621120599,0.17403779,60637.0,60636.0,0.004817]
[1728621120600,0.17567179,60637.0,60636.0,0.004817]
[1728621120809,0.17567179,60637.0,60636.0,0.007817]
[1728621121263,0.1709433,60637.0,60636.0,0.007817]
[1728621121987,0.17567179,60637.0,60636.0,0.007817]
[1728621122206,0.001634,60637.0,60636.0,0.007817]
[1728621122420,0.001634,60637.0,60636.0,0.156243]
[1728621122862,0.001634,60637.0,60636.0,0.15954104]
[1728621123269,0.001634,60637.0,60636.0,0.25429959]
[1728621123489,0.001634,60637.0,60636.0,0.24800155]
[1728621123709,0.001634,60637.0,60636.0,0.26500155]
[1728621124185,0.25247605,60651.0,60650.0,0.001732]
[1728621124417,0.42178535,60651.0,60650.0,0.001732]
[1728621124881,0.17403779,60651.0,60650.0,0.001732]
[1728621126508,0.17403779,60651.0,60650.0,0.002732]
[1728621126921,0.17403779,60651.0,60650.0,0.151124]
[1728621127364,0.17403779,60651.0,60650.0,0.154124]
[1728621127779,0.17403779,60651.0,60650.0,0.005732]
[1728621127987,0.17403779,60651.0,60650.0,0.002732]
[1728621128442,0.17403779,60651.0,60650.0,0.009732]
[1728621128656,0.17403779,60651.0,60650.0,0.008732]
[1728621128862,0.17403779,60651.0,60650.0,0.001732]
[1728621129075,0.17403779,60651.0,60650.0,0.009732]
[1728621129276,0.17403779,60651.0,60650.0,0.001732]
[1728621129504,0.17403779,60651.0,60650.0,0.007732]
[1728621130184,0.17403779,60651.0,60650.0,0.016732]
[1728621130661,0.17403779,60651.0,60650.0,0.007732]
[1728621130922,0.17403779,60651.0,60650.0,0.014732]
[1728621132033,0.17567179,60651.0,60650.0,0.014732]
[1728621136134,0.27397179,60651.0,60650.0,0.014732]
[1728621138025,0.62411934,60651.0,60650.0,0.014732]
[1728621140119,0.52536079,60651.0,60650.0,0.014732]
[1728621140368,0.62411934,60651.0,60650.0,0.014732]
[1728621143203,0.79356204,60651.0,60650.0,0.007732]
[1728621143426,0.89956204,60651.0,60650.0,0.007732]
[1728621143662,0.89956204,60651.0,60650.0,0.001732]
[1728621143879,0.90056204,60651.0,60650.0,0.002732]
[1728621144366,0.90456204,60651.0,60650.0,0.003732]
[1728621144852,0.89956204,60651.0,60650.0,0.003732]
[1728621145085,0.90456204,60651.0,60650.0,0.003732]
[1728621147747,0.90256204,60651.0,60650.0,0.002732]
[1728621147987,0.90056204,60651.0,60650.0,0.002732]
[1728621149150,0.90056204,60651.0,60650.0,0.003732]
[1728621149391,0.90556204,60651.0,60650.0,0.003732]
[1728621156091,0.73611934,60651.0,60650.0,0.003732]
[1728621158953,0.63736079,60651.0,60650.0,0.003732]
[1728621159851,0.62536079,60651.0,60650.0,0.001732]
[1728621160078,0.63536079,60651.0,60650.0,0.002732]
[1728621160305,0.63736079,60651.0,60650.0,0.003732]
[1728621160538,0.63736079,60651.0,60650.0,0.002732]
[1728621160539,0.63536079,60651.0,60650.0,0.002732]
[1728621160766,0.43106079,60651.0,60650.0,0.003732]
[1728621161000,0.42906079,60651.0,60650.0,0.002732]
[1728621161531,0.42406079,60651.0,60650.0,0.001732]
[1728621161768,0.42906079,60651.0,60650.0,0.002732]
[1728621161996,0.43106079,60651.0,60650.0,0.003732]
[1728621162256,0.44906079,60651.0,60650.0,0.002732]
[1728621162498,0.44906079,60651.0,60650.0,0.010732]
[1728621162959,0.44906079,60651.0,60650.0,0.002732]
[1728621163190,0.44906079,60651.0,60650.0,0.001732]
[1728621163191,0.44706079,60651.0,60650.0,0.001732]
[1728621163445,0.44706079,60651.0,60650.0,0.008732]
[1728621163676,0.44706079,60651.0,60650.0,0.014732]
[1728621163909,0.44706079,60651.0,60650.0,0.008732]
[1728621164140,0.44706079,60651.0,60650.0,0.013732]
[1728621165129,0.44706079,60651.0,60650.0,0.006732]
[1728621165378,0.44706079,60651.0,60650.0,0.012732]
[1728621165836,0.44706079,60651.0,60650.0,0.006732]
[1728621166055,0.44706079,60651.0,60650.0,0.011732]
[1728621166540,0.49644044,60651.0,60650.0,0.011732]
[1728621166772,0.49644044,60651.0,60650.0,0.001732]
[1728621166991,0.49644044,60651.0,60650.0,0.011732]
[1728621167660,0.44706079,60651.0,60650.0,0.011732]
[1728621168344,0.44706079,60651.0,60650.0,0.005732]
[1728621168574,0.44706079,60651.0,60650.0,0.010732]
[1728621169049,0.34706079,60651.0,60650.0,0.010732]
[1728621169321,0.39647348,60651.0,60650.0,0.010732]
[1728621169552,0.39647363,60651.0,60650.0,0.010732]
[1728621170451,0.34706079,60651.0,60650.0,0.010732]
[1728621172977,0.3964769,60651.0,60650.0,0.010732]
[1728621174376,0.34706079,60651.0,60650.0,0.010732]
[1728621174623,0.4923769,60651.0,60650.0,0.010732]
[1728621175334,0.4923769,60651.0,60650.0,0.005732]
[1728621175579,0.49238154,60651.0,60650.0,0.008732]
[1728621175825,0.44296079,60651.0,60650.0,0.008732]
[1728621176083,0.44296079,60651.0,60650.0,0.005732]
[1728621176323,0.44296079,60651.0,60650.0,0.008732]
[1728621176563,0.44296079,60651.0,60650.0,0.004732]
[1728621176752,0.44296079,60651.0,60650.0,0.006732]
[1728621176753,0.49238383,60651.0,60650.0,0.006732]
[1728621177014,0.44296079,60651.0,60650.0,0.006732]
[1728621177218,0.49238388,60651.0,60650.0,0.006732]
[1728621177453,0.44296079,60651.0,60650.0,0.006732]
[1728621177672,0.49238388,60651.0,60650.0,0.004732]
[1728621177891,0.49238388,60651.0,60650.0,0.003732]
[1728621178100,0.49238388,60651.0,60650.0,0.006732]
[1728621178812,0.49238388,60651.0,60650.0,0.003732]
[1728621179282,0.49238388,60651.0,60650.0,0.006732]
[1728621179577,0.51709543,60651.0,60650.0,0.006732]
[1728621179768,0.44296079,60651.0,60650.0,0.001732]
[1728621179989,0.49239629,60651.0,60650.0,0.003732]
[1728621180460,0.49239691,60651.0,60650.0,0.003732]
[1728621182595,0.44296079,60651.0,60650.0,0.003732]
[1728621182831,0.49240873,60651.0,60650.0,0.003732]
[1728621183300,0.44296079,60651.0,60650.0,0.003732]
[1728621183538,0.51709543,60651.0,60650.0,0.003732]
[1728621184465,0.44296079,60651.0,60650.0,0.003732]
[1728621185223,0.51709543,60651.0,60650.0,0.003732]
[1728621185462,0.44296079,60651.0,60650.0,0.003732]
[1728621186432,0.42123629,60651.0,60650.0,0.003732]
[1728621186664,0.39650867,60651.0,60650.0,0.003732]
[1728621186899,0.34706079,60651.0,60650.0,0.003732]
[1728621187091,0.39650867,60651.0,60650.0,0.003732]
[1728621188733,0.34706079,60651.0,60650.0,0.003732]
[1728621190848,0.39649827,60651.0,60650.0,0.003732]
[1728621191319,0.34706079,60651.0,60650.0,0.003732]
[1728621195884,0.39649772,60651.0,60650.0,0.003732]
[1728621196090,0.34706079,60651.0,60650.0,0.003732]
[1728621199490,0.42123629,60651.0,60650.0,0.003732]
[1728621200381,0.39649351,60651.0,60650.0,0.003732]
[1728621201754,0.34706079,60651.0,60650.0,0.003732]
[1728621201992,0.39650105,60651.0,60650.0,0.003732]
[1728621202442,0.42123629,60651.0,60650.0,0.003732]
[1728621202667,0.34706079,60651.0,60650.0,0.003732]
[1728621204062,0.42123629,60651.0,60650.0,0.003732]
[1728621204311,0.51623629,60651.0,60650.0,0.003732]
[1728621204565,0.7234348,60651.0,60650.0,0.003732]
[1728621205508,0.62458861,60651.0,60650.0,0.001732]
[1728621205727,0.74814635,60651.0,60650.0,0.003732]
[1728621206888,0.70298861,60651.0,60650.0,0.003732]
[1728621207127,0.80298861,60651.0,60650.0,0.001732]
[1728621207362,0.90674716,60651.0,60650.0,0.001732]
[1728621207770,0.90874716,60651.0,60650.0,0.002732]
[1728621208057,0.80797945,60651.0,60650.0,0.001732]
[1728621208526,1.0831807,60651.0,60650.0,0.003732]
[1728621208764,1.0831807,60651.0,60650.0,0.002732]
[1728621208983,1.23151332,60651.0,60650.0,0.002732]
[1728621209209,0.90066204,60651.0,60650.0,0.002732]
[1728621209426,0.90066204,60651.0,60650.0,0.001732]
[1728621209427,1.05700638,60651.0,60650.0,0.001732]
[1728621210103,1.05900638,60651.0,60650.0,0.002732]
[1728621210336,1.05900638,60651.0,60650.0,0.001732]
[1728621210337,1.05700638,60651.0,60650.0,0.001732]
[1728621210568,1.05900638,60651.0,60650.0,0.002732]
[1728621210838,1.07592516,60651.0,60650.0,0.003732]
[1728621211281,1.07092516,60651.0,60650.0,0.002732]
[1728621211580,0.92762134,60651.0,60650.0,0.003732]
[1728621212026,1.09706404,60651.0,60650.0,0.003732]
[1728621212247,0.92762134,60651.0,60650.0,0.003732]
[1728621212699,0.92749755,60651.0,60650.0,0.003732]
[1728621214686,1.07563908,60651.0,60650.0,0.003732]
[1728621215382,0.92749755,60651.0,60650.0,0.003732]
[1728621226904,1.25060114,60648.0,60647.0,0.000817]
[1728621227135,1.68243901,60648.0,60647.0,0.000817]
[1728621228064,1.68743901,60648.0,60647.0,0.001817]
[1728621228281,1.68943901,60648.0,60647.0,0.002817]
[1728621228522,1.68943901,60648.0,60647.0,0.001817]
[1728621228523,1.53955529,60648.0,60647.0,0.001817]
[1728621228758,1.85688171,60648.0,60647.0,0.001817]
[1728621229233,1.95564026,60648.0,60647.0,0.001817]
[1728621229458,1.85188171,60648.0,60647.0,0.000817]
[1728621229696,1.86588171,60648.0,60647.0,0.001817]
[1728621229946,1.87988171,60648.0,60647.0,0.002817]
[1728621230416,1.71799799,60648.0,60647.0,0.001817]
[1728621230735,1.53448089,60648.0,60647.0,0.002817]
[1728621230826,1.71799799,60648.0,60647.0,0.001817]
[1728621231055,1.71751582,60648.0,60647.0,0.001817]
[1728621231302,1.70351582,60648.0,60647.0,0.000817]
[1728621231787,1.71751582,60648.0,60647.0,0.001817]
[1728621232499,1.73151582,60648.0,60647.0,0.002817]
[1728621235547,1.73146344,60648.0,60647.0,0.002817]
[1728621236773,1.70041947,60648.0,60647.0,0.002817]
[1728621239418,0.66015249,60637.0,60636.0,0.000817]
[1728621239646,1.40204522,60637.0,60636.0,0.000817]
[1728621239873,1.50080377,60637.0,60636.0,0.000817]
[1728621240125,1.50076885,60637.0,60636.0,0.000817]
[1728621240820,1.51476885,60637.0,60636.0,0.001817]
[1728621241066,1.63566717,60637.0,60636.0,0.000817]
[1728621241554,1.66366717,60637.0,60636.0,0.001817]
[1728621241796,1.64966717,60637.0,60636.0,0.000817]
[1728621242027,1.63566717,60637.0,60636.0,0.000817]
[1728621242283,1.64966717,60637.0,60636.0,0.000817]
[1728621242988,1.66366717,60637.0,60636.0,0.000817]
[1728621243454,1.66362408,60637.0,60636.0,0.000817]
[1728621243681,1.46410698,60637.0,60636.0,0.000817]
[1728621243905,1.66162408,60637.0,60636.0,0.000817]
[1728621245536,1.66362408,60637.0,60636.0,0.000817]
[1728621247268,1.67526217,60637.0,60636.0,0.000817]
[1728621248706,1.50426217,60637.0,60636.0,0.000817]
[1728621250602,1.50626217,60637.0,60636.0,0.000817]
[1728621252419,1.50631778,60637.0,60636.0,0.000817]
[1728621255890,1.68511778,60637.0,60636.0,0.000817]
[1728621257100,1.68513004,60637.0,60636.0,0.000817]
[1728621261578,1.83289059,60637.0,60636.0,0.000817]
[1728621261820,1.68513004,60637.0,60636.0,0.000817]
[1728621263502,1.83289059,60637.0,60636.0,0.000817]
[1728621263735,1.68513004,60637.0,60636.0,0.000817]
[1728621263961,1.71094163,60637.0,60636.0,0.000817]
[1728621264650,2.11329118,60637.0,60636.0,0.000817]
[1728621264869,1.96553061,60637.0,60636.0,0.000817]
[1728621265106,1.85873194,60637.0,60636.0,0.000817]
[1728621266451,2.11335955,60637.0,60636.0,0.000817]
[1728621266699,1.96556924,60637.0,60636.0,0.000817]
[1728621269420,1.96574708,60637.0,60636.0,0.000817]
[1728621272187,2.06450563,60637.0,60636.0,0.000817]
[1728621272406,1.96574708,60637.0,60636.0,0.000817]
[1728621272899,1.93993549,60637.0,60636.0,0.000817]
[1728621273373,1.91193549,60637.0,60636.0,0.000817]
[1728621273831,1.93993549,60637.0,60636.0,0.000817]
[1728621274287,1.92593549,60637.0,60636.0,0.000817]
[1728621274759,1.93993549,60637.0,60636.0,0.000817]
[1728621275947,1.74241839,60637.0,60636.0,0.000817]
[1728621276182,1.93993549,60637.0,60636.0,0.000817]
[1728621276431,1.74241839,60637.0,60636.0,0.000817]
[1728621276648,1.92593549,60637.0,60636.0,0.000817]
[1728621276888,1.93993549,60637.0,60636.0,0.000817]
[1728621277191,1.92593549,60637.0,60636.0,0.000817]
[1728621277418,1.93993549,60637.0,60636.0,0.000817]
[1728621277874,2.11373549,60637.0,60636.0,0.000817]
[1728621278097,1.93993549,60637.0,60636.0,0.000817]
[1728621280379,2.10626699,60637.0,60636.0,0.000817]
[1728621282783,1.90674989,60637.0,60636.0,0.000817]
[1728621283020,1.76113549,60637.0,60636.0,0.000817]
[1728621285014,2.03229404,60637.0,60636.0,0.000817]
[1728621289520,2.03318432,60637.0,60636.0,0.000817]
[1728621291152,1.93442577,60637.0,60636.0,0.000817]
[1728621291376,2.03318432,60637.0,60636.0,0.000817]
[1728621292324,0.51172849,60629.0,60612.0,0.148484]
[1728621292620,0.271446,60628.0,60610.0,0.39623556]
[1728621292843,0.88499426,60628.0,60610.0,0.39623556]
[1728621293533,0.88999426,60628.0,60610.0,0.39623556]
[1728621293772,0.98269426,60628.0,60610.0,0.24774756]
[1728621294014,1.16613696,60628.0,60617.0,0.0901]
[1728621294250,1.16601581,60628.0,60618.0,0.24774756]
[1728621294488,1.18001581,60628.0,60618.0,0.24774756]
[1728621294714,1.16601581,60628.0,60618.0,0.24774756]
[1728621295178,1.15201581,60628.0,60618.0,0.24774756]
[1728621296097,1.16601581,60628.0,60618.0,0.24774756]
[1728621296613,1.15201581,60628.0,60618.0,0.24774756]
[1728621297082,1.18001581,60628.0,60618.0,0.24774756]
[1728621298765,1.17986236,60628.0,60618.0,0.24774756]
[1728621298986,1.17986236,60628.0,60610.0,0.24774756]
[1728621299197,1.17986236,60628.0,60619.0,0.24774756]
[1728621299621,1.3464284,60628.0,60619.0,0.24774756]
[1728621299834,1.3324284,60628.0,60619.0,0.24774756]
[1728621300067,1.3184284,60628.0,60619.0,0.24774756]
[1728621300282,1.31515336,60628.0,60619.0,0.24774756]
[1728621300529,0.78120849,60614.0,60613.0,0.0914]
[1728621300751,0.02759849,60612.0,60610.0,0.33994756]
[1728621300977,0.44539279,60612.0,60610.0,0.33994756]
[1728621301227,0.6275744,60612.0,60608.0,0.0777]
[1728621301477,0.76247272,60612.0,60608.0,0.0777]
[1728621301683,0.76747272,60612.0,60608.0,0.0777]
[1728621302788,0.64447272,60612.0,60608.0,0.0777]
[1728621303017,0.74447272,60612.0,60608.0,0.0777]
[1728621303469,0.86769021,60612.0,60608.0,0.0777]
[1728621303908,0.86769021,60612.0,60611.0,0.0014]
[1728621304177,0.89069021,60612.0,60611.0,0.0014]
[1728621304678,0.90264199,60612.0,60611.0,0.0004]
[1728621304899,0.97926077,60612.0,60611.0,0.0004]
[1728621305112,0.99326077,60612.0,60611.0,0.0004]
[1728621305327,0.87004328,60612.0,60611.0,0.0004]
[1728621305555,0.99326077,60612.0,60611.0,0.0004]
[1728621305766,0.97926077,60612.0,60611.0,0.0004]
[1728621305988,0.85604328,60612.0,60611.0,0.0004]
[1728621306421,0.84204328,60612.0,60611.0,0.0004]
[1728621306682,0.94055843,60612.0,60611.0,0.0004]
[1728621306902,1.08062701,60612.0,60611.0,0.0004]
[1728621307181,1.09462701,60612.0,60611.0,0.0004]
[1728621308532,0.99611186,60612.0,60611.0,0.0004]
[1728621308979,0.87004328,60612.0,60611.0,0.0004]
[1728621309204,0.87004328,60612.0,60611.0,0.098]
[1728621309205,0.54726276,60612.0,60611.0,0.098]
[1728621309429,0.45039279,60612.0,60611.0,0.1792]
[1728621310504,0.47339279,60612.0,60611.0,0.1792]
[1728621314305,0.22490779,60612.0,60611.0,0.1792]
[1728621314750,0.22490779,60612.0,60611.0,0.180017]
[1728621315650,0.21090779,60612.0,60611.0,0.180017]
[1728621315862,0.35939279,60612.0,60611.0,0.180017]
[1728621316080,0.36039279,60612.0,60611.0,0.180017]
[1728621316301,0.21190779,60612.0,60611.0,0.180017]
[1728621316542,0.21090779,60612.0,60611.0,0.180017]
[1728621317018,0.34639279,60612.0,60611.0,0.180017]
[1728621317461,0.34639279,60612.0,60611.0,0.182017]
[1728621317621,0.34639279,60612.0,60611.0,0.181017]
[1728621317792,0.34739279,60612.0,60611.0,0.184017]
[1728621318999,0.34639279,60612.0,60611.0,0.183017]
[1728621319241,0.34739279,60612.0,60611.0,0.183017]
[1728621319684,0.34639279,60612.0,60611.0,0.180017]
[1728621319902,0.34739279,60612.0,60611.0,0.182017]
[1728621338761,0.19890779,60612.0,60611.0,0.182017]
[1728621339007,0.34739279,60612.0,60611.0,0.182017]
[1728621341134,0.19890779,60612.0,60611.0,0.182017]
[1728621341377,0.34739279,60612.0,60611.0,0.182017]
[1728621356032,0.34739279,60612.0,60611.0,0.003217]
[1728621358539,0.39672651,60612.0,60611.0,0.003217]
[1728621359746,0.39677534,60612.0,60611.0,0.003217]
[1728621362718,0.34739279,60612.0,60611.0,0.003217]
[1728621366586,0.39677388,60612.0,60611.0,0.003217]
[1728621366840,0.34739279,60612.0,60611.0,0.003217]
[1728621367069,0.39677917,60612.0,60611.0,0.003217]
[1728621367501,0.34739279,60612.0,60611.0,0.003217]
[1728621367951,0.39677635,60612.0,60611.0,0.003117]
[1728621372395,0.39677627,60612.0,60611.0,0.003117]
[1728621376511,0.34739279,60612.0,60611.0,0.003117]
[1728621377465,0.39677903,60612.0,60611.0,0.003117]
[1728621377707,0.34739279,60612.0,60611.0,0.003117]
[1728621379363,0.42147217,60612.0,60611.0,0.003117]
[1728621380744,0.34739279,60612.0,60611.0,0.003117]
[1728621382291,0.39678051,60612.0,60611.0,0.003117]
[1728621382515,0.34739279,60612.0,60611.0,0.003117]
[1728621382719,0.39678051,60612.0,60611.0,0.003117]
[1728621383899,0.34739279,60612.0,60611.0,0.003117]
[1728621384720,0.34902679,60612.0,60611.0,0.003117]
[1728621387493,0.39841451,60612.0,60611.0,0.003117]
[1728621390683,0.148494,60609.0,60604.0,0.49136856]
[1728621391031,0.1693093,60608.0,60604.0,0.49136856]
[1728621391291,0.1693093,60608.0,60604.0,0.243621]
[1728621392153,0.1693093,60608.0,60604.0,0.245621]
[1728621393497,0.1703093,60608.0,60604.0,0.245621]
[1728621394194,0.1713093,60608.0,60604.0,0.245621]
[1728621396450,0.1713093,60608.0,60604.0,0.246439]
[1728621396686,0.1729453,60608.0,60604.0,0.246439]
[1728621398771,0.1729453,60608.0,60605.0,0.148502]
[1728621398990,0.3214413,60608.0,60604.0,0.097935]
[1728621399211,0.1729453,60608.0,60604.0,0.097935]
[1728621399425,0.1729453,60608.0,60604.0,0.246439]
[1728621399653,0.1719453,60608.0,60604.0,0.246439]
[1728621399902,0.1729453,60608.0,60604.0,0.246439]
[1728621400562,0.1729453,60608.0,60604.0,0.097935]
[1728621400808,0.003636,60608.0,60607.0,0.317897]
[1728621401255,0.002636,60608.0,60607.0,0.317897]
[1728621401739,0.003636,60608.0,60607.0,0.317897]
[1728621401961,0.002636,60608.0,60607.0,0.317897]
[1728621402851,0.003636,60608.0,60607.0,0.317897]
[1728621403101,0.148502,60605.0,60604.0,0.000818]
[1728621403333,0.53596985,60605.0,60604.0,0.000818]
[1728621403831,0.54386424,60605.0,60604.0,0.000818]
[1728621404051,0.44510569,60605.0,60604.0,0.000818]
[1728621404710,0.54486424,60605.0,60604.0,0.000818]
[1728621404969,0.62586273,60605.0,60604.0,0.000818]
[1728621405169,0.67526662,60605.0,60604.0,0.000818]
[1728621405394,0.62586273,60605.0,60604.0,0.000818]
[1728621406034,0.62486273,60605.0,60604.0,0.000818]
[1728621406715,0.62586273,60605.0,60604.0,0.000818]
[1728621407401,0.62686273,60605.0,60604.0,0.000818]
[1728621407634,0.62586273,60605.0,60604.0,0.000818]
[1728621408333,0.62686273,60605.0,60604.0,0.000818]
[1728621408779,0.62586273,60605.0,60604.0,0.000818]
[1728621411008,0.62486273,60605.0,60604.0,0.000818]
[1728621411251,0.62586273,60605.0,60604.0,0.000818]
[1728621411678,0.62486273,60605.0,60604.0,0.000818]
[1728621411897,0.62586273,60605.0,60604.0,0.000818]
[1728621413531,0.20580218,60605.0,60604.0,0.000818]
[1728621414217,0.20480218,60605.0,60604.0,0.000818]
[1728621414444,0.35330418,60605.0,60604.0,0.000818]
[1728621415132,0.35430418,60605.0,60604.0,0.000818]
[1728621415400,0.35330418,60605.0,60604.0,0.000818]
[1728621417287,0.35430418,60605.0,60604.0,0.000818]
[1728621417750,0.20480218,60605.0,60604.0,0.000818]
[1728621417992,0.20580218,60605.0,60604.0,0.000818]
[1728621418246,0.35430418,60605.0,60604.0,0.000818]
[1728621420581,0.35594018,60605.0,60604.0,0.000818]
[1728621422415,0.35494018,60605.0,60604.0,0.000818]
[1728621426712,0.20643818,60605.0,60604.0,0.000818]
[1728621432494,0.20183969,60605.0,60604.0,0.000818]
[1728621434136,0.35034169,60605.0,60604.0,0.000818]
[1728621434360,0.20183969,60605.0,60604.0,0.000818]
[1728621438519,0.44834169,60605.0,60604.0,0.000818]
[1728621441340,0.004182,60604.0,60600.0,0.148514]
[1728621441563,0.17687162,60603.0,60600.0,0.148514]
[1728621441782,0.32538062,60603.0,60599.0,0.000817]
[1728621442005,0.17687162,60603.0,60599.0,0.149333]
[1728621443136,0.1693093,60603.0,60599.0,0.149333]
[1728621443571,0.1703093,60603.0,60599.0,0.149333]
[1728621443792,0.1693093,60603.0,60599.0,0.149333]
[1728621444232,0.1703093,60603.0,60599.0,0.149333]
[1728621444457,0.1713093,60603.0,60599.0,0.149333]
[1728621444887,0.1713093,60603.0,60600.0,0.148514]
[1728621446491,0.1703093,60603.0,60600.0,0.148514]
[1728621446948,0.1713093,60603.0,60600.0,0.148514]
[1728621447605,0.1713093,60603.0,60599.0,0.000817]
[1728621448723,0.1713093,60603.0,60599.0,0.149333]
[1728621449444,0.3188163,60603.0,60599.0,0.000817]
[1728621449676,0.1703093,60603.0,60599.0,0.000817]
[1728621449901,0.1713093,60603.0,60599.0,0.149332]
[1728621450146,0.1703093,60603.0,60599.0,0.149332]
[1728621450367,0.1713093,60603.0,60599.0,0.149332]
[1728621451269,0.1713093,60603.0,60600.0,0.148513]
[1728621452190,0.1713093,60603.0,60599.0,0.000817]
[1728621452407,0.1713093,60603.0,60599.0,0.149333]
[1728621453125,0.1703093,60603.0,60599.0,0.149333]
[1728621453344,0.1713093,60603.0,60599.0,0.149333]
[1728621453566,0.1693093,60603.0,60600.0,0.148513]
[1728621454016,0.1713093,60603.0,60600.0,0.148513]
[1728621454681,0.1703093,60603.0,60600.0,0.148513]
[1728621455119,0.1713093,60603.0,60600.0,0.148513]
[1728621455818,0.1713093,60603.0,60599.0,0.000817]
[1728621456064,0.1713093,60603.0,60599.0,0.149332]
[1728621456762,0.1703093,60603.0,60599.0,0.000817]
[1728621456991,0.1703093,60603.0,60599.0,0.149334]
[1728621457630,0.1713093,60603.0,60599.0,0.149334]
[1728621459287,0.1713093,60603.0,60599.0,0.000817]
[1728621459497,0.1713093,60603.0,60600.0,0.148514]
[1728621460292,0.1703093,60603.0,60600.0,0.148514]
[1728621460495,0.1693093,60603.0,60600.0,0.148514]
[1728621460723,0.1713093,60603.0,60599.0,0.000817]
[1728621461139,0.0954,60602.0,60599.0,0.000817]
[1728621461352,0.1693093,60601.0,60599.0,0.000817]
[1728621461558,0.1693093,60601.0,60599.0,0.149334]
[1728621463029,0.1693093,60601.0,60600.0,0.148514]
[1728621463264,0.1693093,60601.0,60599.0,0.000817]
[1728621463265,0.005816,60604.0,60599.0,0.000817]
[1728621463505,0.005816,60604.0,60603.0,0.148507]
[1728621463740,0.005816,60604.0,60603.0,0.227107]
[1728621464714,0.006816,60604.0,60603.0,0.227107]
[1728621466138,0.007816,60604.0,60603.0,0.227107]
[1728621466418,0.006816,60604.0,60603.0,0.227107]
[1728621466649,0.007816,60604.0,60603.0,0.227107]
[1728621467625,0.006816,60604.0,60603.0,0.227107]
[1728621467859,0.007816,60604.0,60603.0,0.227107]
[1728621468796,0.006816,60604.0,60603.0,0.227107]
[1728621469035,0.007816,60604.0,60603.0,0.227107]
[1728621479175,0.007816,60604.0,60603.0,0.227924]
[1728621479921,0.007816,60604.0,60603.0,0.149324]
[1728621484097,0.007816,60604.0,60603.0,0.317724]
[1728621484326,0.007816,60604.0,60603.0,0.242124]
[1728621484534,0.007816,60604.0,60603.0,0.149324]
[1728621484773,0.006816,60604.0,60603.0,0.149324]
[1728621484993,0.007816,60604.0,60603.0,0.149324]
[1728621486278,0.006816,60604.0,60603.0,0.149324]
[1728621487140,0.007816,60604.0,60603.0,0.149324]
[1728621498323,0.1771253,60604.0,60603.0,0.000817]
[1728621499711,0.1761253,60604.0,60603.0,0.000817]
[1728621499939,0.1771253,60604.0,60603.0,0.000817]
[1728621500487,0.1761253,60604.0,60603.0,0.000817]
[1728621500713,0.1771253,60604.0,60603.0,0.000817]
[1728621502593,0.1761253,60604.0,60603.0,0.000817]
[1728621504246,0.1771253,60604.0,60603.0,0.000817]
[1728621506054,0.1761253,60604.0,60603.0,0.000817]
[1728621506319,0.1771253,60604.0,60603.0,0.000817]
[1728621506515,0.1761253,60604.0,60603.0,0.000817]
[1728621507046,0.1761253,60604.0,60603.0,0.149324]
[1728621507286,0.1771253,60604.0,60603.0,0.000817]
[1728621508078,0.1761253,60604.0,60603.0,0.000817]
[1728621508453,0.1771253,60604.0,60603.0,0.149324]
[1728621508944,0.1761253,60604.0,60603.0,0.149324]
[1728621509424,0.1771253,60604.0,60603.0,0.149324]
[1728621509657,0.2571253,60604.0,60603.0,0.000817]
[1728621511520,0.2571253,60604.0,60603.0,0.149324]